bitfinex/quotes_ETHUSD_20241120
["timestamp","ask_amount","ask_price","bid_price","bid_amount"]
[1732138084223,3.25395,3073.2,3072.7,3.25446]
[1732138084920,3.25361,3073.5,3072.6,4.06029]
[1732138085100,3.2542,3073.0,3072.6,0.8058]
[1732138085304,3.25438,3072.8,3072.3,0.8046]
[1732138085507,3.25434,3072.9,3072.3,4.05948]
[1732138085701,3.25434,3072.9,3072.3,0.8046]
[1732138085915,3.25425,3072.9,3072.3,4.05947]
[1732138086112,3.25438,3072.8,3072.3,4.05947]
[1732138086838,3.25435,3072.9,3072.4,3.25475]
[1732138088039,3.25435,3072.9,3072.3,1.536043]
[1732138088040,3.25436,3072.8,3072.3,1.536043]
[1732138088236,3.25446,3072.7,3071.9,0.8261]
[1732138088438,1.3563,3072.4,3071.9,0.8261]
[1732138088639,3.25527,3072.0,3071.5,0.8261]
[1732138088847,3.25563,3071.6,3071.5,0.8261]
[1732138089138,3.25563,3071.6,3071.1,0.8261]
[1732138089139,3.25566,3071.6,3071.1,0.8261]
[1732138089337,3.25546,3071.8,3071.1,0.8261]
[1732138089338,0.55,3071.7,3071.1,0.8261]
[1732138089644,3.25514,3072.1,3071.1,0.8261]
[1732138089828,3.25512,3072.1,3071.6,0.788]
[1732138090182,0.55,3072.5,3071.6,0.788]
[1732138090306,3.25512,3072.1,3071.6,4.04355]
[1732138090511,3.80471,3072.5,3071.9,3.25528]
[1732138090703,3.80471,3072.5,3072.0,0.325528]
[1732138090921,3.80471,3072.5,3071.9,3.25528]
[1732138091137,3.80471,3072.5,3071.7,6.5109]
[1732138091340,3.25489,3072.3,3071.8,3.2554]
[1732138091549,3.25485,3072.4,3071.9,3.2553]
[1732138091750,3.80471,3072.5,3071.7,3.25543]
[1732138091911,3.80471,3072.5,3071.8,3.2554]
[1732138092116,3.80471,3072.5,3071.7,3.659773]
[1732138092117,3.25504,3072.2,3071.7,3.659773]
[1732138092921,3.25504,3072.2,3071.7,0.404343]
[1732138093327,3.25534,3071.9,3071.6,0.788]
[1732138093532,3.2552,3072.0,3071.6,0.788]
[1732138094243,3.25476,3072.5,3071.9,3.25531]
[1732138094558,0.55,3072.4,3072.0,3.25519]
[1732138094753,3.25468,3072.5,3072.0,3.25519]
[1732138095128,4.06502,3072.7,3071.8,0.03255204]
[1732138095129,0.8105,3072.7,3071.8,0.03255204]
[1732138095336,3.25474,3072.5,3071.9,3.2553]
[1732138095535,3.80457,3072.6,3072.0,3.25511]
[1732138095737,3.80459,3072.6,3072.1,3.25508]
[1732138095924,3.80459,3072.6,3071.9,4.4044552]
[1732138095925,4.04175,3072.9,3072.2,3.25492]
[1732138096231,3.25442,3072.8,3072.2,3.25492]
[1732138096436,3.658595,3072.8,3072.2,3.25492]
[1732138096762,3.25442,3072.8,3072.2,3.25492]
[1732138096955,0.7762,3073.1,3072.4,3.25478]
[1732138097156,3.25416,3073.0,3072.5,3.25467]
[1732138097527,3.25431,3072.9,3072.4,3.25471]
[1732138097724,3.25416,3073.0,3072.4,3.25471]
[1732138098037,3.25416,3073.0,3072.3,0.7863]
[1732138098038,3.25444,3072.8,3072.3,0.7863]
[1732138098240,0.650867,3072.8,3072.3,0.7863]
[1732138098545,3.25448,3072.7,3072.3,0.7863]
[1732138098728,3.73498456,3073.4,3072.3,4.04118]
[1732138098924,3.25416,3073.0,3072.5,3.25466]
[1732138099660,3.25427,3072.9,3072.4,3.25477]
[1732138100031,3.25416,3073.0,3072.5,3.25465]
[1732138100265,3.25442,3072.8,3072.6,0.10160315]
[1732138100442,3.25442,3072.8,3072.3,4.04113]
[1732138100644,2.97098456,3073.1,3072.4,0.10160748]
[1732138100839,3.25452,3072.7,3072.1,4.02263]
[1732138101023,6.50908,3072.7,3072.2,0.10161347]
[1732138101226,6.970772,3072.7,3072.3,0.10161347]
[1732138101433,6.970772,3072.7,3072.1,4.02263]
[1732138101662,3.25458,3072.6,3072.2,0.10161361]
[1732138101865,3.25458,3072.6,3072.3,0.10161361]
[1732138102080,3.25472,3072.5,3072.1,0.7676]
[1732138102528,3.25472,3072.5,3072.2,0.10161722]
[1732138102729,0.6970922,3072.5,3071.8,0.782]
[1732138103028,3.25496,3072.3,3071.9,0.10161885]
[1732138103254,3.25496,3072.3,3071.8,4.03741]
[1732138103483,3.25496,3072.3,3071.9,0.10162341]
[1732138103484,6.50994,3072.3,3071.9,0.10162341]
[1732138103683,3.25512,3072.1,3071.8,0.782]
[1732138103885,1.3624,3072.9,3071.5,6.25572]
[1732138103886,3.25527,3072.0,3071.5,0.782]
[1732138104063,3.25527,3072.0,3071.6,0.10163033]
[1732138104240,3.25527,3072.0,3071.7,0.10163033]
[1732138104438,3.25527,3072.0,3071.5,0.782]
[1732138104439,3.25531,3071.9,3071.5,0.782]
[1732138104631,6.51056,3072.0,3071.6,0.10163285]
[1732138104835,6.51056,3072.0,3071.7,0.10163285]
[1732138105204,6.51056,3072.0,3071.5,0.782]
[1732138105205,3.25527,3072.0,3071.5,4.03772]
[1732138105476,3.2549,3072.3,3071.7,3.25545]
[1732138105636,3.2549,3072.3,3071.8,0.10162987]
[1732138105837,3.25501,3072.2,3071.7,3.25545]
[1732138106060,3.25501,3072.2,3071.8,0.10162582]
[1732138106237,3.25501,3072.2,3071.7,4.0251264]
[1732138106238,3.25467,3072.5,3071.5,4.03772]
[1732138106570,3.25518,3072.1,3071.6,0.10162486]
[1732138106873,3.25518,3072.1,3071.5,4.03772]
[1732138106874,3.25539,3071.9,3071.5,0.782]
[1732138107048,3.25539,3071.9,3071.6,0.10163342]
[1732138107251,3.25518,3072.1,3071.5,4.03772]
[1732138107439,3.25518,3072.1,3071.6,0.10162999]
[1732138107440,3.25532,3071.9,3071.6,0.10162999]
[1732138107640,3.25532,3071.9,3071.5,0.782]
[1732138107836,3.25532,3071.9,3071.6,0.10163558]
[1732138108041,3.25532,3071.9,3071.5,0.782]
[1732138108246,3.25532,3071.9,3071.6,0.10163546]
[1732138108545,3.25559,3071.7,3071.5,0.782]
[1732138108761,3.25505,3072.2,3071.5,0.782]
[1732138108963,3.25505,3072.2,3071.5,4.03767]
[1732138109160,3.25523,3072.0,3071.6,0.1016359]
[1732138109472,3.25523,3072.0,3071.7,0.1016359]
[1732138109776,3.25505,3072.2,3071.5,4.441437]
[1732138109975,0.55,3072.3,3071.6,0.10163303]
[1732138110213,0.704553,3072.5,3072.0,3.2552]
[1732138110486,3.25485,3072.4,3072.1,0.7622]
[1732138110651,0.55,3072.5,3072.1,0.7622]
[1732138110977,3.6671705,3073.7,3072.4,3.25472]
[1732138110978,3.25424,3073.0,3072.4,3.25472]
[1732138111368,3.25424,3073.0,3072.4,3.2547]
[1732138111565,4.0537,3073.2,3072.6,3.25454]
[1732138111871,3.254,3073.2,3072.7,0.8091]
[1732138112545,3.25393,3073.3,3072.7,0.8091]
[1732138112743,0.408393,3073.3,3072.7,0.8091]
[1732138113053,3.25404,3073.1,3072.7,0.8091]
[1732138113683,0.83,3073.5,3072.0,3.25518]
[1732138113684,3.25455,3072.7,3072.3,0.8007]
[1732138113849,0.325455,3072.7,3072.3,0.8007]
[1732138114047,3.25447,3072.7,3072.3,0.8007]
[1732138114681,3.25436,3072.8,3072.0,0.7505]
[1732138114852,3.25481,3072.4,3072.1,0.1016157]
[1732138115055,3.25446,3072.7,3071.5,0.7505]
[1732138115305,3.2554,3071.9,3071.5,0.7505]
[1732138115584,3.25552,3071.7,3071.6,0.10162797]
[1732138115879,3.25552,3071.7,3071.2,0.7505]
[1732138116082,0.55,3071.9,3071.3,0.10164389]
[1732138116269,3.25542,3071.8,3071.4,0.10164389]
[1732138116458,0.55,3071.9,3071.5,0.10164106]
[1732138116662,0.55,3071.9,3071.2,0.7505]
[1732138116663,3.25553,3071.7,3071.2,4.00652]
[1732138116858,3.80534,3071.9,3071.3,3.35758109]
[1732138117063,3.80534,3071.9,3071.4,0.10164109]
[1732138117262,3.80534,3071.9,3071.5,0.10164109]
[1732138117475,3.80534,3071.9,3071.2,0.7505]
[1732138117782,3.2555,3071.8,3071.3,3.35757652]
[1732138117982,3.80534,3071.9,3071.4,0.10163652]
[1732138118150,0.7624,3072.3,3071.5,0.10163652]
[1732138118352,3.2554,3071.9,3071.3,3.25594]
[1732138118551,3.2554,3071.9,3071.4,0.10163641]
[1732138118751,3.2554,3071.9,3071.5,0.10163641]
[1732138118752,3.25553,3071.7,3071.5,0.10163641]
[1732138118951,3.25553,3071.7,3071.2,4.00649]
[1732138119183,3.2554,3071.9,3071.2,4.00649]
[1732138119372,3.25544,3071.8,3071.3,0.10163943]
[1732138119707,3.25544,3071.8,3071.4,0.10163654]
[1732138119856,3.25544,3071.8,3071.5,0.10163654]
[1732138120051,3.25523,3072.0,3071.4,3.25583]
[1732138120280,3.25538,3071.9,3071.5,0.10163652]
[1732138120481,3.25538,3071.9,3071.4,3.25583]
[1732138120681,3.25538,3071.9,3071.5,0.10163694]
[1732138120881,3.25538,3071.9,3071.4,3.25583]
[1732138121086,3.25538,3071.9,3071.5,0.10163629]
[1732138121404,3.635753,3072.0,3071.2,4.00654]
[1732138121598,3.25543,3071.8,3071.3,0.10163892]
[1732138121796,3.25543,3071.8,3071.4,0.10163892]
[1732138121995,3.25548,3071.8,3071.3,0.10163892]
[1732138122302,3.25563,3071.6,3071.2,0.7505]
[1732138122503,3.25587,3071.4,3071.3,0.10164499]
[1732138122702,6.51154,3071.5,3070.8,3.2564]
[1732138123006,3.25533,3071.9,3071.0,0.7585]
[1732138123007,3.2557,3071.6,3071.0,0.7585]
[1732138123189,3.2557,3071.6,3071.1,0.10164958]
[1732138123398,3.2557,3071.6,3071.2,0.10164958]
[1732138123602,3.2557,3071.6,3071.3,0.10164958]
[1732138123805,3.25562,3071.7,3071.2,3.25599]
[1732138123806,3.25554,3071.7,3071.2,3.25599]
[1732138124102,6.51115,3071.7,3071.3,0.10164279]
[1732138124305,3.25563,3071.6,3071.5,0.7777]
[1732138124466,3.25574,3071.5,3071.1,0.7777]
[1732138124673,3.25599,3071.3,3071.2,0.10164378]
[1732138124969,3.25607,3071.2,3070.8,0.7777]
[1732138125167,0.325574,3071.5,3070.9,0.10165554]
[1732138125168,3.25622,3071.1,3070.9,0.10165554]
[1732138125573,3.25606,3071.2,3071.0,0.10165761]
[1732138125828,3.25606,3071.2,3070.8,0.7777]
[1732138126125,3.25606,3071.2,3070.9,0.10165577]
[1732138126292,3.25606,3071.2,3070.8,0.7777]
[1732138126496,3.25597,3071.3,3070.9,0.10165528]
[1732138126697,3.25597,3071.3,3070.8,0.7777]
[1732138126995,3.25597,3071.3,3070.9,0.1016533]
[1732138127217,3.25597,3071.3,3070.8,4.03416]
[1732138127523,3.25614,3071.2,3070.9,0.1016548]
[1732138127732,3.25616,3071.1,3070.5,0.7677]
[1732138127970,6.51241,3071.1,3070.6,0.10166164]
[1732138128248,6.51241,3071.1,3070.5,4.02448]
[1732138128249,0.325614,3071.2,3070.7,0.10166164]
[1732138128444,3.25645,3070.9,3070.5,0.7677]
[1732138128647,6.51241,3071.1,3070.5,0.7677]
[1732138128850,6.51241,3071.1,3070.6,0.1016622]
[1732138129069,3.25616,3071.1,3070.5,4.02448]
[1732138129259,3.25611,3071.2,3070.7,3.3582325]
[1732138129414,3.25611,3071.2,3070.7,3.25657]
[1732138129618,3.25611,3071.2,3070.8,0.10165884]
[1732138129805,3.25611,3071.2,3070.7,3.25657]
[1732138130145,6.51182,3071.4,3070.8,0.1016586]
[1732138130362,3.25589,3071.4,3070.7,0.79835]
[1732138130569,3.25569,3071.6,3070.9,0.7886]
[1732138130769,0.325533,3071.9,3071.0,0.10165786]
[1732138130770,3.25617,3071.1,3071.0,0.10165786]
[1732138130906,3.25617,3071.1,3070.9,0.7886]
[1732138130907,3.25626,3071.0,3070.9,0.7886]
[1732138131252,0.7872,3071.4,3070.5,0.8181]
[1732138131253,3.25661,3070.7,3070.5,0.8181]
[1732138131752,3.25648,3070.8,3070.5,0.8181]
[1732138132406,3.25667,3070.7,3070.2,1.0705]
[1732138132610,3.2569,3070.4,3070.3,0.10167044]
[1732138133214,3.25664,3070.7,3070.3,0.10167044]
[1732138133465,0.55,3070.8,3070.2,4.0276]
[1732138133745,3.25666,3070.7,3070.3,0.10167413]
[1732138133944,3.25666,3070.7,3070.2,4.0276]
[1732138134158,3.25641,3070.9,3070.3,4.12911116]
[1732138134294,3.25641,3070.9,3070.3,4.02744]
[1732138135145,3.25641,3070.9,3070.4,3.25689]
[1732138135967,3.25654,3070.8,3070.3,0.7705]
[1732138136170,3.25659,3070.7,3070.3,0.7705]
[1732138136534,3.25671,3070.6,3070.3,0.7705]
[1732138136880,3.25659,3070.7,3070.3,0.7705]
[1732138137821,3.25641,3070.9,3070.4,3.25684]
[1732138138016,3.25651,3070.8,3070.3,4.02748]
[1732138138249,3.25651,3070.8,3070.3,4.755943]
[1732138138687,3.25622,3071.1,3070.3,8.012843]
[1732138138827,3.25638,3070.9,3070.4,0.10166602]
[1732138139028,3.25638,3070.9,3070.4,3.25689]
[1732138140035,3.25638,3070.9,3070.4,6.51371]
[1732138140278,3.2562,3071.1,3070.5,3.25673]
[1732138140497,3.80614,3071.2,3070.6,3.25663]
[1732138140699,3.25616,3071.1,3070.6,3.25663]
[1732138140977,3.80608,3071.2,3070.6,3.25663]
[1732138141137,0.7801,3071.5,3070.8,0.8148]
[1732138141336,3.25584,3071.4,3070.9,3.25635]
[1732138141646,3.25584,3071.4,3070.8,0.8148]
[1732138141647,3.25591,3071.4,3070.8,0.8148]
[1732138141836,6.51182,3071.4,3070.8,4.07125]
[1732138142166,3.25591,3071.4,3070.8,4.804026]
[1732138142326,6.51141,3071.6,3070.9,3.3579293]
[1732138142530,3.25577,3071.5,3071.0,3.25625]
[1732138142837,6.67073508,3072.0,3071.1,3.25616]
[1732138142838,0.44068989,3072.0,3071.1,3.25616]
[1732138143055,3.25515,3072.1,3071.4,3.25581]
[1732138143233,3.25515,3072.1,3071.2,0.50856531]
[1732138143234,3.25552,3071.8,3071.5,0.8131]
[1732138143424,3.256,3071.3,3071.1,0.8131]
[1732138143928,3.41551508,3071.8,3071.1,0.8131]
[1732138144130,3.2559,3071.4,3071.1,0.8131]
[1732138144482,0.55,3071.8,3071.1,0.8131]
[1732138144795,3.25585,3071.4,3071.1,0.8131]
[1732138145522,3.25585,3071.4,3070.6,3.25664]
[1732138145523,3.25585,3071.4,3069.9,0.02]
[1732138145728,3.25606,3071.2,3070.6,3.25661]
[1732138145947,3.25606,3071.2,3070.7,3.35821477]
[1732138146258,3.25606,3071.2,3070.8,0.10165477]
[1732138146456,6.51183,3071.4,3070.8,3.35812477]
[1732138146661,3.25603,3071.3,3070.9,0.10165477]
[1732138146861,3.25603,3071.3,3070.7,3.2565]
[1732138147022,3.25603,3071.3,3070.8,0.10165676]
[1732138147225,3.25603,3071.3,3070.7,3.2565]
[1732138147426,6.51184,3071.4,3070.8,0.10165344]
[1732138147653,6.51184,3071.4,3070.8,3.25647]
[1732138147821,3.2559,3071.4,3070.8,3.25647]
[1732138148045,3.2559,3071.4,3070.9,0.10165527]
[1732138148233,3.25595,3071.3,3071.0,0.10165527]
[1732138148454,3.25595,3071.3,3070.8,3.25647]
[1732138148653,3.25595,3071.3,3070.9,0.10165278]
[1732138148962,3.25616,3071.1,3070.4,0.8131]
[1732138149163,3.25635,3071.0,3070.5,3.35839527]
[1732138149330,3.25616,3071.1,3070.6,0.10165527]
[1732138149532,3.25648,3070.8,3070.7,0.10165527]
[1732138149867,3.25648,3070.8,3070.4,0.8131]
[1732138149868,3.582128,3070.8,3070.4,0.8131]
[1732138150057,3.582128,3070.8,3070.5,0.10166909]
[1732138150058,3.25648,3070.8,3070.5,0.10166909]
[1732138150366,3.25658,3070.7,3070.6,0.10166909]
[1732138150613,3.25658,3070.7,3070.4,0.8131]
[1732138150741,3.25637,3070.9,3070.4,4.06992]
[1732138150940,3.25637,3070.9,3070.5,0.10166988]
[1732138151241,3.25637,3070.9,3070.6,0.10166988]
[1732138151434,3.25637,3070.9,3070.4,4.06992]
[1732138151435,3.25637,3070.9,3070.7,0.10166988]
[1732138151637,3.25622,3071.1,3070.5,0.7693]
[1732138151966,3.25622,3071.1,3070.6,3.35834251]
[1732138152134,3.25622,3071.1,3070.6,3.25668]
[1732138152469,3.25622,3071.1,3070.7,0.10166053]
[1732138152631,3.25622,3071.1,3070.8,0.10166053]
[1732138152842,3.25622,3071.1,3070.9,0.10166053]
[1732138153037,3.25622,3071.1,3070.6,3.25668]
[1732138153238,3.25622,3071.1,3070.7,0.10166065]
[1732138153460,3.25622,3071.1,3070.8,0.10166065]
[1732138153665,0.44068989,3071.6,3070.9,0.10166065]
[1732138153666,3.25627,3071.0,3070.9,0.10166065]
[1732138153869,3.69636989,3071.6,3070.5,0.7693]
[1732138153870,3.25605,3071.2,3070.5,0.7693]
[1732138154057,3.25655,3070.8,3070.6,0.10166909]
[1732138154386,3.25633,3071.0,3070.2,4.06543]
[1732138154695,3.25633,3071.0,3070.3,3.35865851]
[1732138154696,3.25648,3070.8,3070.3,3.35865851]
[1732138154987,3.25648,3070.8,3070.4,0.10166851]
[1732138155153,3.25648,3070.8,3070.5,0.10166851]
[1732138155360,3.25633,3071.0,3070.6,0.10166851]
[1732138155684,3.25633,3071.0,3070.7,0.10166851]
[1732138155854,3.25633,3071.0,3070.8,0.10166851]
[1732138156054,3.25633,3071.0,3070.4,3.2568]
[1732138156302,3.25633,3071.0,3070.5,3.35843461]
[1732138156590,3.25644,3070.9,3070.6,0.10166461]
[1732138156769,3.25644,3070.9,3070.7,0.10166461]
[1732138156969,3.25644,3070.9,3070.4,3.25682]
[1732138157355,3.25644,3070.9,3070.5,0.10166821]
[1732138157592,3.25632,3071.0,3070.6,0.1016648]
[1732138157886,3.25632,3071.0,3070.7,0.1016648]
[1732138158065,3.25632,3071.0,3070.8,0.1016648]
[1732138158266,3.25632,3071.0,3070.5,3.25675]
[1732138158567,0.55,3071.2,3070.7,4.03587]
[1732138158568,3.2561,3071.2,3070.7,4.03587]
[1732138158775,3.2561,3071.2,3070.8,0.10166334]
[1732138158979,3.2561,3071.2,3070.9,0.10166334]
[1732138159177,3.25603,3071.3,3071.0,0.10166334]
[1732138159382,3.25603,3071.3,3071.1,0.10166334]
[1732138159567,3.25603,3071.3,3070.7,4.03581]
[1732138159764,3.25603,3071.3,3070.8,0.10165543]
[1732138159966,3.25617,3071.1,3070.9,0.10165543]
[1732138160172,3.25617,3071.1,3071.0,0.10165543]
[1732138160612,3.25617,3071.1,3070.7,0.7793]
[1732138160777,3.25617,3071.1,3071.0,0.10165764]
[1732138161685,3.962382,3071.1,3071.0,0.10165764]
[1732138161881,3.25643,3070.9,3070.3,4.06263]
[1732138162087,3.25643,3070.9,3070.4,0.10166918]
[1732138162288,3.25643,3070.9,3070.5,0.10166918]
[1732138162583,3.25643,3070.9,3070.6,0.10166918]
[1732138162789,3.25643,3070.9,3070.7,0.10166918]
[1732138163099,3.25643,3070.9,3070.4,3.2569]
[1732138163299,3.25647,3070.9,3070.5,0.10166769]
[1732138163505,3.25647,3070.9,3070.3,4.0627]
[1732138163506,3.25647,3070.9,3070.6,0.10166769]
[1732138163670,3.25647,3070.9,3070.7,0.10166769]
[1732138163869,3.25631,3071.0,3070.3,4.06263]
[1732138164174,3.25631,3071.0,3070.4,3.3584671]
[1732138164377,3.25631,3071.0,3070.5,0.1016671]
[1732138164582,3.25631,3071.0,3070.6,0.1016671]
[1732138164797,4.35134104,3071.3,3070.7,0.1016671]
[1732138164966,3.25621,3071.1,3070.8,0.1016671]
[1732138165167,3.25621,3071.1,3070.9,0.1016671]
[1732138165367,3.25621,3071.1,3070.6,3.25661]
[1732138165571,3.25621,3071.1,3070.7,0.10165949]
[1732138165866,3.80602,3071.3,3070.9,0.7901]
[1732138165867,0.55,3071.3,3070.9,0.7901]
[1732138166062,0.55,3071.3,3069.9,3.0]
[1732138166063,3.55,3071.5,3070.5,0.7901]
[1732138166263,3.25623,3071.1,3070.6,0.50634873]
[1732138166498,0.7981,3071.3,3070.7,0.10165873]
[1732138166798,0.7981,3071.3,3070.0,0.625741]
[1732138166799,3.25648,3070.8,3070.3,4.0471]
[1732138166999,3.25656,3070.8,3070.4,0.10166823]
[1732138167199,3.25656,3070.8,3070.5,0.10166823]
[1732138167431,3.25605,3071.2,3070.3,4.0471]
[1732138167571,3.25653,3070.8,3070.3,0.7901]
[1732138167772,3.25666,3070.7,3070.4,0.10167122]
[1732138168005,3.25669,3070.6,3070.5,0.10167122]
[1732138168185,3.25659,3070.7,3070.5,0.10167122]
[1732138168511,3.25717,3070.2,3070.0,0.8045]
[1732138168717,3.25733,3070.0,3069.6,0.7878]
[1732138169003,3.25722,3070.1,3069.7,0.10169004]
[1732138169206,3.25717,3070.2,3069.8,0.10169004]
[1732138169368,3.25717,3070.2,3069.9,0.10169004]
[1732138169708,3.25692,3070.4,3070.0,0.10169004]
[1732138169896,3.25692,3070.4,3070.1,0.10169004]
[1732138170092,4.02224,3070.8,3070.2,0.7878]
[1732138170299,0.45068989,3071.4,3070.2,0.7878]
[1732138170300,0.7778,3071.1,3070.4,3.25682]
[1732138170471,3.25626,3071.0,3070.3,0.10168113]
[1732138170672,6.5126,3071.0,3070.4,3.35853951]
[1732138170925,6.5126,3071.0,3070.3,3.25691]
[1732138170926,0.7778,3071.1,3070.5,3.35844951]
[1732138171127,3.25595,3071.3,3070.6,3.35835951]
[1732138171325,3.25595,3071.3,3070.7,0.10166951]
[1732138171326,3.25621,3071.1,3070.7,0.10166951]
[1732138171475,3.25621,3071.1,3070.6,3.59252595]
[1732138171476,3.25621,3071.1,3070.8,0.10166951]
[1732138171821,3.25595,3071.3,3070.9,0.10166951]
[1732138172024,3.25616,3071.1,3070.8,0.8253]
[1732138172218,6.51242,3071.1,3070.8,0.8253]
[1732138172428,0.402975,3071.3,3070.8,0.8253]
[1732138172706,3.25622,3071.1,3070.8,0.8253]
[1732138172912,3.25605,3071.2,3070.8,0.8253]
[1732138173904,3.25616,3071.1,3070.8,0.8253]
[1732138174075,0.8082,3071.7,3070.8,0.8253]
[1732138174275,0.8082,3071.7,3070.9,0.10166091]
[1732138174276,3.25614,3071.2,3070.9,0.10166091]
[1732138174477,3.25595,3071.3,3071.0,0.10166091]
[1732138174720,3.25575,3071.5,3071.1,0.10165054]
[1732138175004,3.25548,3071.8,3071.2,0.10165054]
[1732138175306,3.25569,3071.6,3071.3,0.10165054]
[1732138175482,3.25569,3071.6,3071.0,3.25626]
[1732138175683,3.25569,3071.6,3071.1,0.10164502]
[1732138175886,3.25569,3071.6,3071.2,0.10164502]
[1732138176183,3.25569,3071.6,3071.0,3.25621]
[1732138176184,3.25569,3071.6,3071.3,0.10164502]
[1732138176514,3.25569,3071.6,3071.1,3.25614]
[1732138176736,3.25569,3071.6,3071.2,0.10164218]
[1732138176933,3.25569,3071.6,3071.3,0.10164218]
[1732138177239,3.25569,3071.6,3071.1,3.25614]
[1732138177514,3.25569,3071.6,3071.2,0.10164249]
[1732138177692,3.25569,3071.6,3071.3,0.10164249]
[1732138177899,3.25569,3071.6,3071.1,3.25614]
[1732138178215,3.25569,3071.6,3071.2,0.10164227]
[1732138178381,3.25569,3071.6,3070.8,4.489881]
[1732138178580,3.25569,3071.6,3071.0,3.25624]
[1732138178786,3.25569,3071.6,3071.1,0.10164681]
[1732138179018,3.25569,3071.6,3071.2,0.10164681]
[1732138179019,3.25588,3071.4,3071.2,0.10164681]
[1732138179220,3.25609,3071.2,3070.8,0.8253]
[1732138179386,3.25609,3071.2,3070.9,0.10165927]
[1732138179580,0.7943,3071.5,3070.8,0.8253]
[1732138179581,0.55,3071.4,3070.8,0.8253]
[1732138179888,3.25612,3071.2,3070.9,0.10166115]
[1732138180102,3.25612,3071.2,3070.8,0.8253]
[1732138180308,3.25612,3071.2,3070.9,0.10165943]
[1732138180508,3.25612,3071.2,3070.8,0.8253]
[1732138180708,3.25612,3071.2,3070.9,0.10166032]
[1732138180886,3.25612,3071.2,3070.8,0.8253]
[1732138181082,3.25612,3071.2,3070.9,0.10166071]
[1732138181322,3.25612,3071.2,3071.0,0.10166071]
[1732138181486,3.9728769,3071.4,3070.8,0.8253]
[1732138181487,3.80589,3071.4,3070.8,0.8253]
[1732138181686,3.80589,3071.4,3070.9,0.10165169]
[1732138181687,3.256,3071.3,3070.9,0.10165169]
[1732138182003,3.256,3071.3,3071.0,0.10165169]
[1732138182304,3.25582,3071.5,3071.1,0.10165088]
[1732138182510,3.25582,3071.5,3070.2,2.98560419]
[1732138182511,3.25582,3071.5,3071.0,3.25624]
[1732138182706,6.5114,3071.6,3071.1,0.87525417]
[1732138182885,3.25575,3071.5,3071.2,0.10165417]
[1732138183085,3.25575,3071.5,3071.1,0.7736]
[1732138183631,3.25569,3071.6,3071.1,0.7736]
[1732138183815,3.4037605,3071.9,3070.8,0.8094]
[1732138184145,3.25612,3071.2,3070.9,0.10165438]
[1732138184284,0.55,3071.6,3071.0,0.10165438]
[1732138184285,3.25597,3071.3,3071.0,0.10165438]
[1732138184482,3.25597,3071.3,3070.8,0.8094]
[1732138184686,3.25597,3071.3,3070.9,0.10165607]
[1732138184887,3.25597,3071.3,3070.8,0.8094]
[1732138184888,3.25611,3071.2,3071.0,0.10165607]
[1732138185136,3.25607,3071.2,3070.8,0.8094]
[1732138185448,3.25607,3071.2,3070.9,0.10165714]
[1732138185682,3.25607,3071.2,3071.0,0.10165714]
[1732138185853,0.826,3071.5,3070.8,0.8094]
[1732138185986,0.55,3071.6,3070.8,0.8094]
[1732138185987,3.80561,3071.7,3070.9,3.25629]
[1732138186320,3.80561,3071.7,3071.0,3.25626]
[1732138186321,3.25576,3071.5,3071.0,3.25626]
[1732138186521,7.06123,3071.7,3071.1,3.25615]
[1732138186738,3.80558,3071.7,3070.9,3.25629]
[1732138186893,3.25579,3071.5,3070.9,6.5126]
[1732138187094,3.25579,3071.5,3071.0,0.10164815]
[1732138187304,3.25579,3071.5,3070.9,6.5126]
[1732138187305,3.25579,3071.5,3071.1,0.10164815]
[1732138187519,4.96686413,3071.7,3071.2,0.10164815]
[1732138187698,4.96686413,3071.7,3070.9,3.25629]
[1732138187699,3.25563,3071.6,3071.0,3.25626]
[1732138187898,3.25563,3071.6,3070.9,3.25629]
[1732138187899,3.25573,3071.5,3071.1,0.10164893]
[1732138188126,1.71127413,3071.7,3071.2,0.10164893]
[1732138188330,0.44068989,3071.4,3070.8,0.8094]
[1732138188527,3.25624,3071.1,3070.8,0.8094]
[1732138188694,3.25632,3071.0,3070.9,0.10165992]
[1732138189302,3.25632,3071.0,3070.8,0.8094]
[1732138189510,3.25606,3071.2,3070.8,0.8094]
[1732138189693,3.25606,3071.2,3070.9,0.10165913]
[1732138189908,3.25606,3071.2,3070.8,0.8094]
[1732138189909,3.25617,3071.1,3070.8,0.8094]
[1732138190103,3.25626,3071.0,3070.9,0.10165781]
[1732138190305,3.25626,3071.0,3070.9,0.1016609]
[1732138190531,3.25617,3071.1,3070.4,4.0491]
[1732138190723,3.25639,3070.9,3070.5,0.10166835]
[1732138190922,3.25648,3070.8,3070.6,0.10166835]
[1732138191116,3.25648,3070.8,3070.7,0.10166835]
[1732138192823,3.25626,3071.0,3070.8,0.8093]
[1732138193029,3.25637,3070.9,3070.5,0.8093]
[1732138193209,3.25637,3070.9,3070.6,0.10166471]
[1732138193529,3.25637,3070.9,3070.7,0.10166471]
[1732138193731,3.25637,3070.9,3070.8,0.10166471]
[1732138193933,3.25637,3070.9,3070.6,0.10166471]
[1732138194098,3.25637,3070.9,3070.5,0.8093]
[1732138194099,3.25637,3070.9,3070.5,0.71096471]
[1732138194699,3.25654,3070.8,3070.5,0.71096471]
[1732138195045,3.25664,3070.7,3070.5,0.71096471]
[1732138195208,3.25679,3070.5,3069.9,6.51472]
[1732138195394,3.25679,3070.5,3069.5,4.63007851]
[1732138195395,3.25679,3070.5,3070.0,3.25727]
[1732138195599,6.51368,3070.5,3070.0,3.25727]
[1732138195824,3.25679,3070.5,3069.6,1.20034813]
[1732138196141,3.25679,3070.5,3070.0,3.25728]
[1732138197118,3.25679,3070.5,3070.1,0.8126]
[1732138198026,3.25663,3070.7,3070.1,0.8126]